Cogmind - Beta 16.1 @@@ ROGUE MODE // 2026.04.08 @ 20:52:01 Player: Maelyn Result: Destroyed by OT-71N(R) with Subdweller Machine Gun Performance ------------- Evolutions (0) 0 Regions Visited (3) 600 Robots Destroyed (15) 75 Value Destroyed (426) 426 Prototype IDs (0) 0 Alien Tech Used (0) 0 Bonus (0) 0 TOTAL SCORE: 1101 Bonus ------- None Cogmind --------- Core Integrity 0/250 Matter 300/300 Energy 248/250 System Corruption 0% Temperature Cool (1) Movement Walking (120) Location -10/Subcaves Parts ------- > --- POWER (1) -------- Ion Engine > --- PROPULSION (2) --- Aluminum Leg > --- UTILITY (2) ------ Small Storage Unit > --- WEAPON (2) ------- (None) > --- INVENTORY (8) ---- Ion Engine Light Treads Medium Matter Pod (33) Hacking Suite Autogun Autogun Subdweller Machine Gun Grenade Launcher Peak State ------------ > --- POWER ------------ Ion Engine > --- PROPULSION ------- Aluminum Leg Aluminum Leg > --- UTILITY ---------- Small Storage Unit > --- WEAPON ----------- Heavy Riot Gun Autogun > --- INVENTORY -------- Ion Engine Light Treads Medium Matter Pod Hacking Suite Autogun Autogun Subdweller Machine Gun Grenade Launcher [Rating: 11] Favorites ----------- Power Ion Engine Engine Ion Engine Propulsion Light Treads Treads Light Treads Leg Aluminum Leg Utility Small Storage Unit Device Seismic Detector Storage Small Storage Unit Weapon Autogun Energy Gun Heavy Riot Gun Ballistic Gun Autogun Build | -11 -10 -10 -10 ------- Run | Yrd Mat Min Sub Slots Evolved . | . . . . Power . | . . . . Propulsion . | . . . . Utility . | . . . . Weapon . | . . . . Parts Attached 14 | 7 4 2 1 Power 3 | 1 2 . . Engine 3 | 1 2 . . Core . | . . . . Reactor . | . . . . Propulsion 4 | 2 . 2 . Treads 2 | 2 . . . Leg 2 | . . 2 . Wheel . | . . . . Hover . | . . . . Flight . | . . . . Utility 2 | 2 . . . Device 1 | 1 . . . Storage 1 | 1 . . . Processor . | . . . . Hackware . | . . . . Protection . | . . . . Artifact . | . . . . Weapon 5 | 2 2 . 1 Energy Gun 1 | . . . 1 Energy Cannon . | . . . . Ballistic Gun 4 | 2 2 . . Ballistic Cannon . | . . . . Launcher . | . . . . Special Weapon . | . . . . Impact Weapon . | . . . . Slashing Weapon . | . . . . Piercing Weapon . | . . . . Special Melee Weapon . | . . . . Unidentified Prototypes . | . . . . Parts Lost 5 | . 2 . 3 Power 1 | . 1 . . Propulsion 1 | . . . 1 Utility 1 | . 1 . . Weapon 2 | . . . 2 Highest Loss Streak 3 | . 1 . 3 To Critical Strikes . | . . . . Average Backups 6 | 2 6 7 7 Power . | . . 1 1 Propulsion 2 | 1 3 1 1 Utility 1 | . . 2 2 Weapon 2 | . 1 2 3 Tool/Special . | . . . . Unused Backups 10 | . 3 . 7 Power . | . . . . Propulsion 2 | . 1 . 1 Utility 2 | . . . 2 Weapon 6 | . 2 . 4 Tool/Special . | . . . . Average Slot Usage (%) 87 | . 97 85 70 Engine 13 | . 13 14 14 Treads 16 | . 28 10 . Leg 10 | . . 17 23 Device 5 | . 12 . . Storage 14 | . 14 14 14 Energy Gun 1 | . . . 6 Ballistic Gun 24 | . 28 28 12 Peak Build Rating 11 | 7 10 9 11 Average Rating 8 | 5 8 9 8 On Entrance 6 | . 7 9 9 Avg Prop Armor Cover (%) . | . . . . Naked Turns . | . . . . Heaviest Build 17 | 14 17 16 17 Greatest Support 40 | 40 40 40 20 Greatest Overweight (x) 1 | . . . 1 Average Overweight (x) . | . . . . Largest Inventory Capacity 8 | 8 8 8 8 Average Capacity 7 | 7 8 8 8 Most Carried 8 | 5 8 8 8 Average Carried 7 | 2 7 7 7 Final Capacity 8 | 8 8 8 8 Final Carried 8 | 4 8 7 8 Class Distribution -------------------- 100% | Mutant Dominant Class ---------------- Mutant | -10/Materials Mutant | -10/Mines Mutant | -10/Subcaves Resources | -11 -10 -10 -10 ----------- Run | Yrd Mat Min Sub Matter Collected 758 | 92 332 155 179 Remotely . | . . . . Salvage Created 565 | 14 456 95 . Parts 42 | 4 30 8 . Haulers Intercepted . | . . . . Recyclers Shooed . | . . . . Parts Field Recycled . | . . . . Retrieved Matter . | . . . . Parts Self-Destructed 4 | . . . 4 Prevented . | . . . . Parts Restored . | . . . . Kills | -11 -10 -10 -10 ------- Run | Yrd Mat Min Sub Combat Hostiles Destroyed 10 | . 8 2 . Guns 10 | . 8 2 . Classes Destroyed 5 | 1 4 . . Worker 1 | . 1 . . Tunneler 2 | 1 . 1 . Recycler 1 | . 1 . . Operator 1 | . 1 . . Grunt 10 | . 8 2 . Best Kill Streak 3 | 1 3 3 . Combat Bots Only 2 | . 2 2 . Max Kills in Single Turn 2 | 1 1 2 . Gunslinging 1 | . . 1 . Exploded . | . . . . Melee . | . . . . Uniques/NPCs Destroyed . | . . . . Combat | -11 -10 -10 -10 -------- Run | Yrd Mat Min Sub Hostile Shots Fired 116 | . 63 4 49 Missed 31 | . 19 2 10 Hits 85 | . 44 2 39 Projectile 85 | . 44 2 39 Critical Strikes 2 | . 1 . 1 Damage Taken 1237 | . 551 26 660 Core 274 | . 55 . 219 Absorbed by Shields . | . . . . Core Remaining (%) 100 | 100 . . . Volleys Fired 59 | 3 52 3 1 Largest 2 | 2 2 2 1 Hottest 46 | 40 46 46 23 Shots Fired 117 | 6 104 6 1 Gun 117 | 6 104 6 1 Cannon . | . . . . Launcher . | . . . . Special . | . . . . Kinetic 117 | 6 104 6 1 Thermal . | . . . . Explosive . | . . . . Electromagnetic . | . . . . Robot Hit Streak 8 | 3 8 3 . Robot Miss Streak 5 | 1 5 1 1 Penetration Max . | . . . . Secondary Targets 4 | . 3 1 . Max Gunslinging Chain 1 | . 1 1 . Shots Hit Robots 69 | 5 60 4 . Core Hits 27 | 2 21 4 . Critical Kills . | . . . . Critical Parts Destroyed . | . . . . Critical Strikes . | . . . . Melee Attacks . | . . . . Impact . | . . . . Slashing . | . . . . Piercing . | . . . . Sneak Attacks . | . . . . Combat Hostiles . | . . . . Follow-up Attacks . | . . . . Damage Inflicted 975 | 52 859 64 . Guns 975 | 52 859 64 . Cannons . | . . . . Explosions . | . . . . Melee . | . . . . Ramming . | . . . . Kinetic 975 | 52 859 64 . Thermal . | . . . . Explosive . | . . . . Electromagnetic . | . . . . Impact . | . . . . Slashing . | . . . . Piercing . | . . . . Highest Corruption . | . . . . Average Corruption . | . . . . Corruption Purged . | . . . . Corruption Blocked . | . . . . Overload Shots . | . . . . Overflow Damage . | . . . . Projectiles . | . . . . Explosions . | . . . . Melee . | . . . . Knockbacks . | . . . . Impact . | . . . . Kinetic . | . . . . Secondary . | . . . . Self-Inflicted Damage . | . . . . Shots . | . . . . Rammed . | . . . . Targets Rammed . | . . . . Kicked . | . . . . Crushed . | . . . . Highest Temperature 56 | . 56 7 . Average Temperature 12 | . 13 4 . Received Heat Transfer 459 | . 330 15 114 Siege Activations . | . . . . Martial Activations . | . . . . Shielding Activations . | . . . . Robots Disrupted . | . . . . Combat Hostiles . | . . . . Robots Corrupted . | . . . . Combat Hostiles . | . . . . Parts Fried . | . . . . Impact Corruptions . | . . . . Robots Melted . | . . . . Combat Hostiles . | . . . . Parts Melted . | . . . . Heat Transferred . | . . . . Parts Sabotaged . | . . . . Parts Stolen . | . . . . Parts Stripped . | . . . . Power Chain Reactions . | . . . . Alert | -11 -10 -10 -10 ------- Run | Yrd Mat Min Sub Maximum Alert Level . | . . . . Low Security (%) 100 | 100 100 100 . Level 1 . | . . . . Level 2 . | . . . . Level 3 . | . . . . Level 4 . | . . . . Level 5 . | . . . . High Security . | . . . . Max Security . | . . . . Peak Influence 70 | 5 70 55 . Initial 15 | . . 15 . Average 19 | 1 28 8 . Influence Increases 310 | 5 250 55 . Destroy 0b10 Robot/C 200 | . 160 40 . Destroy 0b10 Robot/NC 25 | 5 15 5 . Destroy Leader 40 | . 30 10 . Disable Machine 15 | . 15 . . Lose Combat Pursuer 30 | . 30 . . Influence Decreases 310 | 5 209 96 . Entered New Map 26 | . . 26 . Time Decay 274 | 5 199 70 . Lost Part 10 | . 10 . . Squads Dispatched 1 | . 1 . . Investigation . | . . . . Extermination . | . . . . Reinforcement 1 | . 1 . . Assault . | . . . . Garrison . | . . . . Intercept . | . . . . Searches Triggered . | . . . . Construction Impeded . | . . . . Haulers Reinforced . | . . . . Active Scanning Responses . | . . . . Cargo Convoy Interrupts . | . . . . Stealth | -11 -10 -10 -10 --------- Run | Yrd Mat Min Sub Distress Signals 3 | . 3 . . Communications Jammed . | . . . . Distress Signals . | . . . . Times Spotted 27 | . 20 2 5 Peak Tracking Total 5 | . 4 2 5 Tactical Retreats 2 | . 1 . 1 Traps | -11 -10 -10 -10 ------- Run | Yrd Mat Min Sub Traps Triggered . | . . . . Indirectly . | . . . . Trap Hack Attempts . | . . . . Triggered . | . . . . Disarmed . | . . . . Reprogrammed . | . . . . Reused . | . . . . Traps Extracted . | . . . . Installed . | . . . . Triggered . | . . . . Machines | -11 -10 -10 -10 ---------- Run | Yrd Mat Min Sub Machines Disabled 1 | . 1 . . Max in Single Turn 1 | . 1 . . Machines Repaired . | . . . . Machines Dismantled . | . . . . Machines Sabotaged . | . . . . Overloaded Fab Kills . | . . . . Hacking | -11 -10 -10 -10 --------- Run | Yrd Mat Min Sub Machines Accessed . | . . . . Terminals . | . . . . Fabricators . | . . . . Repair Stations . | . . . . Recycling Units . | . . . . Scanalyzers . | . . . . Garrison Access . | . . . . Total Hacks . | . . . . Successful . | . . . . Failed . | . . . . Catastrophic . | . . . . Database Lockouts . | . . . . Manual . | . . . . Terminals . | . . . . Fabricators . | . . . . Repair Stations . | . . . . Recycling Units . | . . . . Scanalyzers . | . . . . Garrison Access . | . . . . Terminal Hacks . | . . . . Fabricator Hacks . | . . . . Repair Station Hacks . | . . . . Recycling Unit Hacks . | . . . . Scanalyzer . | . . . . Garrison Access Hacks . | . . . . Unauthorized Hacks . | . . . . Terminals . | . . . . Fabricators . | . . . . Repair Stations . | . . . . Recycling Units . | . . . . Scanalyzers . | . . . . Garrison Access . | . . . . Data Cores Recovered . | . . . . Used . | . . . . Hacking Detections . | . . . . Full Trace Events . | . . . . Feedback Events . | . . . . Feedback Blocked . | . . . . Robot Schematics Acquired . | . . . . Robots Built . | . . . . Authchips . | . . . . Time . | . . . . Total Robot Build Rating . | . . . . Part Schematics Acquired . | . . . . Parts Built . | . . . . Authchips . | . . . . Time . | . . . . Total Part Build Rating . | . . . . Part Studies Acquired . | . . . . Parts Repaired . | . . . . Time . | . . . . Parts Recycled . | . . . . Recycled Matter . | . . . . Retrieved Matter . | . . . . Retrieved Components . | . . . . Parts Scanalyzed . | . . . . Part Schematics Acquired . | . . . . Parts Damaged . | . . . . Bothacking | -11 -10 -10 -10 ------------ Run | Yrd Mat Min Sub Used RIF Installer . | . . . . Robots Hacked . | . . . . Non-combat . | . . . . Combat . | . . . . Robot Hacks Applied . | . . . . Relay Couplers Released . | . . . . Fabnet Peak Effective % . | . . . . Robots Rewired . | . . . . Allies Hacked . | . . . . Hacks Repelled . | . . . . Allies | -11 -10 -10 -10 -------- Run | Yrd Mat Min Sub Total Allies . | . . . . Largest Group . | . . . . Highest-Rated Group . | . . . . Highest-Rated Ally . | . . . . Total Orders . | . . . . Ally Attacks . | . . . . Total Damage . | . . . . Kills . | . . . . Allies Corrupted . | . . . . Allies Melted . | . . . . Intel | -11 -10 -10 -10 ------- Run | Yrd Mat Min Sub Active Infowar (turns) 511 | 19 492 . . Seismic 511 | 19 492 . . Robot Analysis Total . | . . . . Derelict Logs Recovered 1 | . . . 1 Drone Launches . | . . . . Drone Recoveries . | . . . . Exploration | -11 -10 -10 -10 ------------- Run | Yrd Mat Min Sub Turns Passed 1279 | 72 564 346 297 Spaces Moved 781 | 31 257 251 242 Core 4 | 4 . . . Treads 360 | 27 257 76 . Legs 417 | . . 175 242 Wheels . | . . . . Hover . | . . . . Flight . | . . . . Fastest Speed 50 | 50 160 120 120 Average Speed 138 | 145 160 132 120 Slowest Speed 190 | 160 160 160 190 Overloaded Moves . | . . . . Propulsion Burnouts . | . . . . Robots Hopped . | . . . . Potential Cave-ins . | . . . . Cave-ins Triggered . | . . . . Exploration Rate (%) 34 | 3 42 70 22 Regions Visited 3 Branch Regions 2 Pre-discovered Areas . | . . . . Known Exits Taken . | . . . . Unknown Exits Taken 3 | 1 1 1 . Scrap Searched 4 | . . 1 3 Spaces Dug . | . . . . Terrain Destroyed . | . . . . Melee . | . . . . Projectile . | . . . . AOE . | . . . . Terrain Rammed . | . . . . Walls Destroyed . | . . . . Machines Disabled . | . . . . Actions | -11 -10 -10 -10 --------- Run | Yrd Mat Min Sub Total 885 | 52 327 260 246 Wait 2 | . . 2 . Move 778 | 30 256 250 242 Hop . | . . . . Pick Up 22 | 11 9 1 1 Fast Attach 1 | . . . 1 Attach 8 | 7 1 . . Detach . | . . . . Swap 6 | 1 3 2 . Drop 9 | . 6 2 1 Fire 59 | 3 52 3 1 Melee . | . . . . Ram . | . . . . Kick . | . . . . Crush . | . . . . Escape Stasis . | . . . . Rewire . | . . . . Trap . | . . . . Miscellaneous . | . . . . Route ------- -11/Scrapyard -10/Materials (discovered 2 exits: [*Mat] / [*Min]) -10/Mines (discovered 2 exits: [*Mat] / [*Sub]) -10/Subcaves History --------- Turn | Location | Event 2 | -11/Scrapyard | Met Revision 17 30 | -11/Scrapyard | Discovered new exit (range 16) 73 | -11/Scrapyard | Entered Materials 327 | -10/Materials | Discovered new exit (range 8) 334 | -10/Materials | Build established: Mutant 443 | -10/Materials | Discovered new exit (range 13) 637 | -10/Materials | Entered Mines 853 | -10/Mines | Discovered new exit (range 14) 974 | -10/Mines | Discovered new exit (range 7) 983 | -10/Mines | Entered Subcaves 993 | -10/Subcaves | Learned 2 Materials zone layouts 1049 | -10/Subcaves | Disturbed a concealed Subdweller 1178 | -10/Subcaves | Core integrity fell below 50% 1196 | -10/Subcaves | Core integrity fell below 20% 1220 | -10/Subcaves | Lost 3 parts (1n2w) 1280 | -10/Subcaves | Destroyed by OT-71N(R) with Subdweller Machine Gun Last Messages --------------- 01029_ Searching scrap... 01029_ Found Hvy. Riot Gun. 01029_ Found 34 Matter. 01030_ Acquired 34 matter. 01031_ Dropped Autogun. 01032_ Acquired Hvy. Riot Gun. 01035_ Subatomizers dissect the Autogun. 01036_ Searching scrap... 01036_ Found Sub. Laser. 01036_ Found Sub. Power Source. 01036_ Found 64 Matter. 01037_ Acquired 64 matter. 01049_ FL-7CJ(R) angrily emerges from the Twisted Machinery. 01171_ Hvy. Riot Gun destroyed. 01177_ Critical hit (Burn: +37). 01183_ Aluminum Leg destroyed. 01189_ Autogun destroyed. 01257_ Acquired 10 matter. 01266_ Acquired 6 matter. 01271_ N4-VGQ(u) tweaks Twisted Machinery. Map ----- +----------------------------------------------------+ | ?????????????????????????????????????????????????? | | ?????????????????????????????????????????????????? | | ?????????????????????????????????????????????????? | | ?????????????????????????????????????????????????? | | ?????????????????????????????????????????????????? | | ?????????????????????????????????????????????????? | | ?????????????????????????????????????????????????? | | ?????????????????????????????????????????????????? | | ?????????????????????????????????????????????????? | | ?????????????????????????????????????????????????? | | ?????????????????????????????????????????????????? | | ?????????????????????????????????????????????????? | | ??????????????????? ????????????????????????????? | | ??????????????????? ???????????????????????????? | | ???????????????????# ???????????????????????????? | | ???????????????????# ??????????????????????????? | | ??????????????????? % ??????????????????????????? | | ???????????????????? ???????##?????????????????? | | ????????????????????# #????? #####?????????????? | | ????????????????????# ###?? " #?????????????? | | ????????????????????? ### #?????????????? | | ?????????????????????# "##????????????? | | ?????????????????????#u "#????????????? | | ?????????????????????# ### ????????? | | ????????????????????## O u ???????? | | ????????????????????# % @ ????????? | | ????????????????????# % ## #??????????????? | | ????????????????????# ##?????????????????? | | ????????????????????## ##??????????????????? | | ????????????????????## ####????????????????? | | ????????????????????# ##???????????????? | | ????????????????????## ###?????????????? | | ?????????????????##### #???????????? | | ?????????????????# ### ##???????????? | | ?????????????????# ##??# ##????????????? | | ?????????????" ??# #????###?????????????? | | ????????????# ### ## #????????????????????? | | ????????????# ###?##????????????????????? | | ????????????# # R #????????????????????????? | | ???????? ## R##????????????????????????? | | ??????? ## #?# ###???????????????????????? | | ??????? ? ??## ####% ##??##??????????????????? | | ????????????# ?# ### #??????????????????? | | ????????????## #?## #??????????????????? | | ????????????# ###### ##??????????????????? | | ????????????# ##?## % ##???????????????????? | | ???????????### #### % ##????????????????????? | | ??????????## ## ##?????????????????????? | | ??????????# ##??????????????????????? | | ??????????# ##???????????????????????? | +----------------------------------------------------+ Best States ------------- Heat Dissipation 25 Energy Generation 10 Energy Capacity 250 Matter Stores 300 Matter Capacity 300 Sight Range 16 Terrain Scan Density 10 Evasion (%) 55 Recoil Reduction 2 Item Schematics ----------------- None Robot Schematics ------------------ None Fabricated ------------ Nothing Repaired ---------- Nothing Studied --------- None Alien Tech Used ----------------- None Achievements -------------- None Challenges ------------ None Game ------ Seed CompanionDeliveryMegatreads Manual? 0 Play Time 00:12:02 Cumulative 23.1 hours Start 2026.04.08 @ 20:41:15 End 2026.04.08 @ 20:52:01 Sessions 1 Manual Loads 0 Difficulty Rogue Special Mode None Game No. 66 Rogue 66 Adventurer 0 Explorer 0 Win Type - Total 0 Types 0/0/0/0/0/0/0/0/0/0 Lore% 10 Gallery% 21 Achievement% 12 Wizard Run 0 Options --------- Layout 1 ASCII 0 Keyboard 0 Movement Mouse Keybinds 0 Fullscreen 0 Font 16/TamsynBold Map View 64x42 Zoom Use 0% Tactical HUD 1 Map Filters NONE Filters NONE Steam 1 RUN: 200cdadc-a286-4f12-abb1-c7d69a9ea2ac